{"text_format":"3","workbook":"xlsx","n_sheets":1,"sheets":["Budget non lucratif"],"not_rendered":{"charts":2,"images":1,"defined_names":1},"read":"whole","date_system":"1900"}

{"sheet":"Budget non lucratif","index":0,"n_rows":40,"n_cols":7,"rows_kept":40,"merged":[[16,1,16,6],[20,1,20,5]]}
[null,"Budget non lucratif",{"$nulls":3},"ANNÉE FISCALE",2012]
{"$rows_empty":7}
[null,null,{"$f":"CONCATENATE(\"AF \",AF-1)","v":"AF 2011"},{"$f":"CONCATENATE(\"AF \",AF)","v":"AF 2012"},{"$f":"CONCATENATE(\"AF \",AF)","v":"AF 2012"},{"$f":"CONCATENATE(\"AF \",AF)","v":"AF 2012"},{"$f":"CONCATENATE(\"AF \",AF)","v":"AF 2012"}]
[null,"CHIFFRE D’AFFAIRES","ANNÉE PRÉCÉDENTE","PROPOSÉ","RÉEL","ÉCART","+/- ANNÉE PRÉCÉDENTE"]
[null,"Collectes de fonds et événements",{"v":150000,"d":"150000.00"},{"v":200000,"d":"200000.00"},{"v":180000,"d":"180000.00"},{"$f":"TableauChiffreAffaires[[#This Row],[RÉEL]]-TableauChiffreAffaires[[#This Row],[PROPOSÉ]]","v":{"v":-20000,"d":"(20000.00)"}},{"$f":"TableauChiffreAffaires[[#This Row],[RÉEL]]-TableauChiffreAffaires[[#This Row],[ANNÉE PRÉCÉDENTE]]","v":{"v":30000,"d":"30000.00"}}]
[null,"Fondation",{"v":50000,"d":"50000.00"},{"v":50000,"d":"50000.00"},{"v":50000,"d":"50000.00"},{"$f":"TableauChiffreAffaires[[#This Row],[RÉEL]]-TableauChiffreAffaires[[#This Row],[PROPOSÉ]]","v":{"v":0,"d":"0.00"}},{"$f":"TableauChiffreAffaires[[#This Row],[RÉEL]]-TableauChiffreAffaires[[#This Row],[ANNÉE PRÉCÉDENTE]]","v":{"v":0,"d":"0.00"}}]
[null,"Dons",{"v":30000,"d":"30000.00"},{"v":40000,"d":"40000.00"},{"v":20000,"d":"20000.00"},{"$f":"TableauChiffreAffaires[[#This Row],[RÉEL]]-TableauChiffreAffaires[[#This Row],[PROPOSÉ]]","v":{"v":-20000,"d":"(20000.00)"}},{"$f":"TableauChiffreAffaires[[#This Row],[RÉEL]]-TableauChiffreAffaires[[#This Row],[ANNÉE PRÉCÉDENTE]]","v":{"v":-10000,"d":"(10000.00)"}}]
[null,"Intérêt des revenus",{"$nulls":3},{"$f":"TableauChiffreAffaires[[#This Row],[RÉEL]]-TableauChiffreAffaires[[#This Row],[PROPOSÉ]]","v":{"v":0,"d":"0.00"}},{"$f":"TableauChiffreAffaires[[#This Row],[RÉEL]]-TableauChiffreAffaires[[#This Row],[ANNÉE PRÉCÉDENTE]]","v":{"v":0,"d":"0.00"}}]
[null,"Divers",{"$nulls":3},{"$f":"TableauChiffreAffaires[[#This Row],[RÉEL]]-TableauChiffreAffaires[[#This Row],[PROPOSÉ]]","v":{"v":0,"d":"0.00"}},{"$f":"TableauChiffreAffaires[[#This Row],[RÉEL]]-TableauChiffreAffaires[[#This Row],[ANNÉE PRÉCÉDENTE]]","v":{"v":0,"d":"0.00"}}]
[null,"TOTAUX",{"$f":"SUBTOTAL(109,TableauChiffreAffaires[ANNÉE PRÉCÉDENTE])","v":{"v":230000,"d":"230,000.00 €"}},{"$f":"SUBTOTAL(109,TableauChiffreAffaires[PROPOSÉ])","v":{"v":290000,"d":"290,000.00 €"}},{"$f":"SUBTOTAL(109,TableauChiffreAffaires[RÉEL])","v":{"v":250000,"d":"250,000.00 €"}},{"$f":"SUBTOTAL(109,TableauChiffreAffaires[ÉCART])","v":{"v":-40000,"d":"(40,000.00 €)"}},{"$f":"SUBTOTAL(105,TableauChiffreAffaires[+/- ANNÉE PRÉCÉDENTE])","v":{"v":-10000,"d":"(10,000.00 €)"}}]
{"$rows_empty":8}
[null,null,{"$f":"CONCATENATE(\"AF \",AF-1)","v":"AF 2011"},{"$f":"CONCATENATE(\"AF \",AF)","v":"AF 2012"},{"$f":"CONCATENATE(\"AF \",AF)","v":"AF 2012"},{"$f":"CONCATENATE(\"AF \",AF)","v":"AF 2012"},{"$f":"CONCATENATE(\"AF \",AF)","v":"AF 2012"}]
[null,"DÉPENSES","ANNÉE PRÉCÉDENTE","PROPOSÉ","RÉEL","ÉCART","+/- ANNÉE PRÉCÉDENTE"]
[null,"Salaire",{"v":15000,"d":"15,000.00"},{"v":30000,"d":"30,000.00"},{"v":30000,"d":"30,000.00"},{"$f":"TableauDépenses[[#This Row],[RÉEL]]-TableauDépenses[[#This Row],[PROPOSÉ]]","v":{"v":0,"d":"0.00"}},{"$f":"TableauDépenses[[#This Row],[RÉEL]]-TableauDépenses[[#This Row],[ANNÉE PRÉCÉDENTE]]","v":{"v":15000,"d":"15,000.00"}}]
[null,"Avantages",{"v":5000,"d":"5,000.00"},{"v":7500,"d":"7,500.00"},{"v":7800,"d":"7,800.00"},{"$f":"TableauDépenses[[#This Row],[RÉEL]]-TableauDépenses[[#This Row],[PROPOSÉ]]","v":{"v":300,"d":"300.00"}},{"$f":"TableauDépenses[[#This Row],[RÉEL]]-TableauDépenses[[#This Row],[ANNÉE PRÉCÉDENTE]]","v":{"v":2800,"d":"2,800.00"}}]
[null,"Loyer",{"v":6000,"d":"6,000.00"},{"v":6000,"d":"6,000.00"},{"v":6000,"d":"6,000.00"},{"$f":"TableauDépenses[[#This Row],[RÉEL]]-TableauDépenses[[#This Row],[PROPOSÉ]]","v":{"v":0,"d":"0.00"}},{"$f":"TableauDépenses[[#This Row],[RÉEL]]-TableauDépenses[[#This Row],[ANNÉE PRÉCÉDENTE]]","v":{"v":0,"d":"0.00"}}]
[null,"Charges",{"v":1000,"d":"1,000.00"},{"v":1200,"d":"1,200.00"},{"v":1150,"d":"1,150.00"},{"$f":"TableauDépenses[[#This Row],[RÉEL]]-TableauDépenses[[#This Row],[PROPOSÉ]]","v":{"v":-50,"d":"(50.00)"}},{"$f":"TableauDépenses[[#This Row],[RÉEL]]-TableauDépenses[[#This Row],[ANNÉE PRÉCÉDENTE]]","v":{"v":150,"d":"150.00"}}]
[null,"Déplacements et réunions",{"v":2500,"d":"2,500.00"},{"v":2000,"d":"2,000.00"},{"v":2800,"d":"2,800.00"},{"$f":"TableauDépenses[[#This Row],[RÉEL]]-TableauDépenses[[#This Row],[PROPOSÉ]]","v":{"v":800,"d":"800.00"}},{"$f":"TableauDépenses[[#This Row],[RÉEL]]-TableauDépenses[[#This Row],[ANNÉE PRÉCÉDENTE]]","v":{"v":300,"d":"300.00"}}]
[null,"Frais professionnels",{"$nulls":3},{"$f":"TableauDépenses[[#This Row],[RÉEL]]-TableauDépenses[[#This Row],[PROPOSÉ]]","v":{"v":0,"d":"0.00"}},{"$f":"TableauDépenses[[#This Row],[RÉEL]]-TableauDépenses[[#This Row],[ANNÉE PRÉCÉDENTE]]","v":{"v":0,"d":"0.00"}}]
[null,"Marketing/publicité",{"$nulls":3},{"$f":"TableauDépenses[[#This Row],[RÉEL]]-TableauDépenses[[#This Row],[PROPOSÉ]]","v":{"v":0,"d":"0.00"}},{"$f":"TableauDépenses[[#This Row],[RÉEL]]-TableauDépenses[[#This Row],[ANNÉE PRÉCÉDENTE]]","v":{"v":0,"d":"0.00"}}]
[null,"Assurance",{"$nulls":3},{"$f":"TableauDépenses[[#This Row],[RÉEL]]-TableauDépenses[[#This Row],[PROPOSÉ]]","v":{"v":0,"d":"0.00"}},{"$f":"TableauDépenses[[#This Row],[RÉEL]]-TableauDépenses[[#This Row],[ANNÉE PRÉCÉDENTE]]","v":{"v":0,"d":"0.00"}}]
[null,"Téléphone",{"$nulls":3},{"$f":"TableauDépenses[[#This Row],[RÉEL]]-TableauDépenses[[#This Row],[PROPOSÉ]]","v":{"v":0,"d":"0.00"}},{"$f":"TableauDépenses[[#This Row],[RÉEL]]-TableauDépenses[[#This Row],[ANNÉE PRÉCÉDENTE]]","v":{"v":0,"d":"0.00"}}]
[null,"Frais Web (site Web, espace de réunion, etc.)",{"$nulls":3},{"$f":"TableauDépenses[[#This Row],[RÉEL]]-TableauDépenses[[#This Row],[PROPOSÉ]]","v":{"v":0,"d":"0.00"}},{"$f":"TableauDépenses[[#This Row],[RÉEL]]-TableauDépenses[[#This Row],[ANNÉE PRÉCÉDENTE]]","v":{"v":0,"d":"0.00"}}]
[null,"Équipement",{"$nulls":3},{"$f":"TableauDépenses[[#This Row],[RÉEL]]-TableauDépenses[[#This Row],[PROPOSÉ]]","v":{"v":0,"d":"0.00"}},{"$f":"TableauDépenses[[#This Row],[RÉEL]]-TableauDépenses[[#This Row],[ANNÉE PRÉCÉDENTE]]","v":{"v":0,"d":"0.00"}}]
[null,"Provisions",{"$nulls":3},{"$f":"TableauDépenses[[#This Row],[RÉEL]]-TableauDépenses[[#This Row],[PROPOSÉ]]","v":{"v":0,"d":"0.00"}},{"$f":"TableauDépenses[[#This Row],[RÉEL]]-TableauDépenses[[#This Row],[ANNÉE PRÉCÉDENTE]]","v":{"v":0,"d":"0.00"}}]
[null,"Frais postaux",{"$nulls":3},{"$f":"TableauDépenses[[#This Row],[RÉEL]]-TableauDépenses[[#This Row],[PROPOSÉ]]","v":{"v":0,"d":"0.00"}},{"$f":"TableauDépenses[[#This Row],[RÉEL]]-TableauDépenses[[#This Row],[ANNÉE PRÉCÉDENTE]]","v":{"v":0,"d":"0.00"}}]
[null,"TOTAUX",{"$f":"SUBTOTAL(109,TableauDépenses[ANNÉE PRÉCÉDENTE])","v":{"v":29500,"d":"29,500.00 €"}},{"$f":"SUBTOTAL(109,TableauDépenses[PROPOSÉ])","v":{"v":46700,"d":"46,700.00 €"}},{"$f":"SUBTOTAL(109,TableauDépenses[RÉEL])","v":{"v":47750,"d":"47,750.00 €"}},{"$f":"SUBTOTAL(109,TableauDépenses[ÉCART])","v":{"v":1050,"d":"1,050.00 €"}},{"$f":"SUBTOTAL(109,TableauDépenses[+/- ANNÉE PRÉCÉDENTE])","v":{"v":18250,"d":"18,250.00 €"}}]